bitfinex-derivatives/quotes_ETHF0:USTF0_20241104
["timestamp","ask_amount","ask_price","bid_price","bid_amount"]
[1730715337463,44.0078,2468.2,2468.1,0.99480682]
[1730715337683,40.8,2468.2,2468.1,5.10299427]
[1730715337977,40.8,2468.2,2468.1,6.87053764]
[1730715338169,40.8,2468.2,2468.1,10.92253764]
[1730715338374,40.8,2468.2,2468.1,8.21223926]
[1730715338677,3.8056,2468.6,2468.5,0.4054]
[1730715338871,3.8056,2468.6,2468.2,1.0136]
[1730715338872,0.40541,2468.5,2468.4,0.40541]
[1730715339085,41.20541,2468.5,2468.4,0.40541]
[1730715339574,40.8,2468.5,2468.4,0.40541]
[1730715343175,40.8,2468.5,2468.4,4.45661]
[1730715343375,40.8,2468.5,2468.4,0.40541]
[1730715347475,40.8,2468.5,2468.4,4.45661]
[1730715347672,40.8,2468.5,2468.4,0.40541]
[1730715349483,40.8,2468.5,2468.4,4.45661]
[1730715349883,40.8,2468.5,2468.4,0.40541]
[1730715351780,40.8,2468.5,2468.4,4.45661]
[1730715352171,4.2203967,2468.9,2468.8,0.40535]
[1730715352374,4.2203967,2468.9,2468.8,3.57078244]
[1730715352781,3.2078,2469.4,2469.3,0.40527]
[1730715352977,4.3643,2469.8,2469.7,0.40521]
[1730715353179,40.8,2469.8,2469.7,3.57064244]
[1730715353876,40.8,2469.8,2469.7,7.61944244]
[1730715354785,40.8,2469.8,2469.7,3.57064244]
[1730715355980,41.20519,2469.8,2469.7,3.57064244]
[1730715356187,40.8,2469.8,2469.7,3.57064244]
[1730715356774,40.8,2469.8,2469.7,7.61944244]
[1730715358083,3.2078,2471.0,2470.6,0.40505]
[1730715358284,3.2078,2471.0,2470.8,3.16543244]
[1730715358476,0.40501,2470.9,2470.8,3.16543244]
[1730715358789,3.2078,2471.0,2470.8,3.16543244]
[1730715358790,3.6128,2471.0,2470.8,3.16543244]
[1730715358980,40.8,2470.9,2470.8,3.16543244]
[1730715359490,40.8,2470.9,2470.7,4.29525524]
[1730715359689,40.8,2470.9,2470.8,0.40503]
[1730715360190,40.8,2470.9,2470.7,3.89022524]
[1730715360686,0.40507,2470.6,2470.4,3.89022524]
[1730715360878,0.40509,2470.5,2470.2,0.40512]
[1730715361080,0.40506,2470.6,2470.2,0.40512]
[1730715361284,3.2078,2470.7,2470.4,3.89022524]
[1730715361483,0.6031,2470.8,2470.6,0.40505]
[1730715361884,0.40506,2470.7,2470.5,0.40507]
[1730715362081,1.00814,2470.8,2470.5,0.40507]
[1730715362487,0.40504,2470.7,2470.5,0.40507]
[1730715362695,0.40506,2470.6,2470.4,3.89022524]
[1730715362895,3.2078,2470.7,2470.2,3.89022524]
[1730715363185,1.00814,2470.8,2470.5,0.40507]
[1730715363387,0.6031,2470.8,2470.7,3.89022524]
[1730715363593,40.8,2470.9,2470.8,0.40503]
[1730715363782,40.8,2470.9,2470.8,5.04843]
[1730715363982,40.8,2470.9,2470.8,5.61793]
[1730715364689,3.2078,2471.4,2470.8,5.2129]
[1730715365001,41.20495,2471.3,2471.0,4.29520524]
[1730715365182,0.40501,2470.9,2470.6,3.2078]
[1730715365384,3.2078,2471.1,2470.8,3.89022524]
[1730715365889,0.555,2471.2,2471.1,0.40498]
[1730715366089,40.8,2471.3,2471.0,3.89022524]
[1730715366296,41.20495,2471.3,2471.1,0.40497]
[1730715366478,41.20495,2471.3,2471.0,3.89022524]
[1730715366479,40.8,2471.3,2471.0,3.89022524]
[1730715366685,40.8,2471.3,2471.1,0.40497]
[1730715366883,0.40499,2471.1,2470.8,3.89022524]
[1730715367089,0.405,2471.0,2470.8,4.29524524]
[1730715367391,3.2078,2471.2,2470.8,3.89022524]
[1730715367591,3.2078,2471.2,2470.8,4.29523524]
[1730715367592,0.40499,2471.1,2470.8,4.29523524]
[1730715367785,0.40499,2471.0,2470.8,3.89022524]
[1730715367981,3.2078,2471.2,2470.8,3.89022524]
[1730715368185,0.40499,2471.0,2470.8,3.89022524]
[1730715368389,0.40501,2470.9,2470.8,3.89022524]
[1730715368582,0.40504,2470.8,2470.6,3.2078]
[1730715368782,0.40504,2470.8,2470.5,3.89022524]
[1730715368783,0.5642,2470.8,2470.5,3.89022524]
[1730715368985,0.96924,2470.8,2470.5,0.40506]
[1730715369189,0.5642,2470.8,2470.7,0.40504]
[1730715369988,3.2078,2470.9,2470.5,3.89022524]
[1730715370197,3.2078,2470.9,2470.8,0.40503]
[1730715370494,3.2078,2470.9,2470.8,4.29525524]
[1730715370882,0.6052,2471.2,2470.8,7.93742524]
[1730715371081,0.6052,2471.2,2470.8,3.89022524]
[1730715371287,0.405,2471.0,2470.8,4.29524524]
[1730715371688,3.813,2471.2,2470.8,3.89022524]
[1730715371887,3.813,2471.2,2470.4,3.2078]
[1730715372088,3.61283,2470.8,2470.6,0.40505]
[1730715372400,0.40504,2470.7,2470.5,4.29529524]
[1730715372586,4.22026,2471.1,2470.2,4.46032524]
[1730715372587,3.2078,2471.1,2470.2,4.46032524]
[1730715372785,3.2078,2470.8,2470.2,0.5701]
[1730715372995,0.40508,2470.5,2470.3,0.4051]
[1730715373192,0.5781,2470.7,2470.1,0.5839]
[1730715373402,0.40512,2470.2,2470.1,0.5839]
[1730715373696,44.0078,2470.2,2469.8,0.5839]
[1730715373888,42.58897011,2470.2,2469.8,0.98908]
[1730715374090,42.58897011,2470.2,2469.8,0.5839]
[1730715374293,0.40517,2469.9,2469.8,0.5839]
[1730715374491,0.5781,2470.1,2469.8,0.5839]
[1730715374797,0.98326,2470.1,2469.8,0.98908]
[1730715374999,0.40516,2470.0,2469.8,0.98908]
[1730715375697,0.40517,2469.9,2469.8,0.5839]
[1730715376190,0.98325,2470.1,2469.9,0.40517]
[1730715376386,42.58897011,2470.2,2470.0,3.89022524]
[1730715376588,0.5806,2470.6,2470.0,7.09802524]
[1730715376798,0.98566,2470.6,2470.4,0.40509]
[1730715377195,40.8,2470.5,2470.4,0.40509]
[1730715377697,41.20508,2470.5,2470.3,1.0126]
[1730715378698,0.40509,2470.4,2470.3,0.6075]
[1730715379495,40.8,2470.5,2470.4,0.40509]
[1730715379702,40.8,2470.5,2470.4,4.45309]
[1730715379999,3.2078,2471.3,2470.4,4.45309]
[1730715380000,0.40497,2471.2,2470.5,1.01269]
[1730715380196,0.40496,2471.3,2471.1,0.40497]
[1730715380399,40.8,2471.2,2471.1,0.40497]
[1730715380597,40.8,2471.2,2470.9,0.6143]
[1730715380897,41.20496,2471.2,2471.0,0.40498]
[1730715381699,0.40498,2471.1,2470.9,1.0193]
[1730715381904,0.40498,2471.1,2470.9,0.6143]
[1730715382201,0.40499,2471.0,2470.9,0.6143]
[1730715382401,0.40503,2470.9,2470.7,4.18314]
[1730715382598,0.40501,2471.0,2470.8,0.40503]
[1730715382799,0.40502,2470.9,2470.7,3.61283]
[1730715383503,41.81242,2471.2,2470.7,3.2078]
[1730715383708,40.8,2471.2,2470.7,3.2078]
[1730715383898,0.405,2471.0,2470.8,0.40502]
[1730715384198,0.40503,2470.8,2470.7,3.2078]
[1730715384397,0.99362,2470.9,2470.7,4.19009721]
[1730715384598,0.99362,2470.9,2470.7,3.61284]
[1730715385109,40.8,2471.2,2470.8,3.89022524]
[1730715385302,40.8,2471.2,2471.1,0.40498]
[1730715385501,40.8,2471.2,2470.8,3.89022524]
[1730715385799,41.20496,2471.2,2471.0,0.40498]
[1730715386008,40.8,2471.2,2470.8,3.89022524]
[1730715386198,40.8,2471.2,2471.1,0.40498]
[1730715386592,41.20496,2471.2,2471.1,0.40498]
[1730715386798,40.8,2471.2,2471.1,4.29520524]
[1730715386999,40.8,2471.2,2471.1,9.97521737]
[1730715387200,40.8,2471.2,2471.1,6.71793737]
[1730715387409,41.20496,2471.2,2471.1,1.18867304]
[1730715387595,41.20496,2471.2,2471.1,0.6113]
[1730715387794,0.40498,2471.1,2471.0,3.2078]
[1730715388502,40.8,2471.2,2471.1,0.40498]
[1730715388808,41.20496,2471.2,2471.1,0.97727769]
[1730715389008,41.20496,2471.2,2471.1,0.57229769]
[1730715389307,40.8,2471.2,2471.1,0.97739439]
[1730715390003,40.8,2471.2,2471.1,5.02379439]
[1730715390210,3.2078,2471.9,2471.6,0.40488]
[1730715390511,3.2078,2471.9,2471.8,0.40486]
[1730715390808,3.2078,2471.9,2471.8,0.97727439]
[1730715390809,44.41265,2471.9,2471.8,0.97727439]
[1730715391001,44.0078,2471.9,2471.8,0.97727439]
[1730715391208,44.41265,2471.9,2471.8,0.57241439]
[1730715391403,44.0078,2471.9,2471.8,0.57241439]
[1730715391602,44.0078,2471.9,2471.8,0.97727439]
[1730715391807,44.41265,2471.9,2471.8,0.97727439]
[1730715392106,44.41265,2471.9,2471.8,0.57245896]
[1730715394506,44.0078,2471.9,2471.8,0.57245896]
[1730715394703,44.41265,2471.9,2471.8,0.57245896]
[1730715395612,48.0534,2471.9,2471.4,1.65104316]
[1730715395908,0.40491,2471.6,2471.5,0.57320087]
[1730715396113,1.95126523,2471.8,2471.5,0.57320087]
[1730715396408,4.45048,2471.7,2471.6,0.57360509]
[1730715396709,4.45048,2471.7,2471.2,1.04074316]
[1730715396710,0.40494,2471.3,2471.2,1.04074316]
[1730715396912,0.40494,2471.3,2471.2,2.53241696]
[1730715398010,0.40494,2471.4,2471.2,2.93736696]
[1730715398203,0.40493,2471.4,2471.3,1.4916738]
[1730715398401,0.40493,2471.4,2471.3,2.93735696]
[1730715398707,0.40492,2471.5,2471.3,2.53241696]
[1730715399013,3.2078,2471.7,2471.3,1.04074316]
[1730715399208,0.40491,2471.5,2471.4,0.57929949]
[1730715399515,0.40491,2471.5,2471.4,0.98422949]
[1730715399906,0.40491,2471.5,2471.4,0.40493]
[1730715400213,0.40491,2471.5,2471.4,0.57948482]
[1730715400415,4.45131,2471.5,2471.4,0.57948482]
[1730715400808,0.40498,2471.1,2471.0,1.04074316]
[1730715401007,4.22019,2471.3,2471.0,0.92758661]
[1730715401324,3.2078,2471.3,2471.2,0.40496]
[1730715401615,0.40494,2471.3,2471.2,1.96150102]
[1730715401819,3.61271,2471.6,2471.2,1.01241]
[1730715402118,0.40493,2471.5,2471.4,0.40492]
[1730715402822,3.6127,2471.6,2471.5,0.40491]
[1730715403115,3.2078,2471.6,2471.2,1.04074316]
[1730715403314,0.40494,2471.4,2471.3,1.32591417]
[1730715404311,0.40494,2471.4,2471.3,0.40494]
[1730715404508,3.2078,2471.6,2471.2,1.04074316]
[1730715404817,0.40494,2471.3,2471.2,1.44569316]
[1730715405011,0.40494,2471.3,2471.2,1.32817969]
[1730715405320,0.40494,2471.4,2471.3,0.40494]
[1730715405514,3.2078,2471.6,2471.3,0.40494]
[1730715406019,0.40493,2471.4,2471.3,0.40494]
[1730715406211,0.40492,2471.5,2471.1,2.19024316]
[1730715406417,0.40491,2471.5,2471.4,0.40493]
[1730715406913,0.40491,2471.5,2471.2,0.6047]
[1730715407218,3.61271,2471.6,2471.2,1.6171]
[1730715407418,3.61271,2471.6,2471.4,0.40491]
[1730715407817,3.2078,2471.6,2471.4,0.40491]
[1730715408116,0.40491,2471.5,2471.4,0.40491]
[1730715408912,3.2078,2471.6,2471.2,1.61711]
[1730715408913,3.2078,2471.6,2471.5,0.40491]
[1730715409115,1.5789496,2471.7,2471.3,3.89022524]
[1730715409309,0.40492,2471.5,2471.4,0.40492]
[1730715409509,1.5789496,2471.7,2471.2,1.61711]
[1730715409712,0.40492,2471.5,2471.4,0.40492]
[1730715410118,3.6127,2471.6,2471.5,0.4049]
[1730715410517,3.2078,2471.6,2471.2,1.6171]
[1730715410718,3.61271,2471.6,2471.5,0.40491]
[1730715410915,2.5482496,2471.7,2471.6,0.40489]
[1730715411114,6.5938496,2471.7,2471.6,0.40489]
[1730715411513,1.0114496,2471.7,2471.6,0.40489]
[1730715411713,1.4163296,2471.7,2471.6,0.40489]
[1730715412308,1.0114496,2471.7,2471.6,0.40489]
[1730715413125,1.0114496,2471.7,2471.6,4.29511524]
[1730715413521,1.0114496,2471.7,2471.4,3.89022524]
[1730715413723,1.0114496,2471.7,2471.6,0.40489]
[1730715414716,1.0114496,2471.7,2471.6,12.12073099]
[1730715414921,1.01187,2472.6,2471.6,12.12073099]
[1730715414922,0.40477,2472.4,2472.3,0.40477]
[1730715415230,41.20476,2472.4,2472.3,0.40477]
[1730715415427,40.8,2472.4,2472.3,3.56363763]
[1730715415625,41.20476,2472.4,2472.3,3.56363763]
[1730715415927,40.8,2472.4,2472.3,3.15886763]
[1730715416125,41.20476,2472.4,2472.3,3.15886763]
[1730715416322,40.8,2472.4,2472.3,3.56364763]
[1730715416720,4.20714,2472.6,2472.3,3.56364763]
[1730715416721,3.2078,2472.6,2472.5,0.40475]
[1730715417022,0.40466,2473.1,2472.5,3.77897874]
[1730715417023,3.2078,2473.1,2472.5,3.77897874]
[1730715417223,0.4047,2472.8,2472.6,3.15886763]
[1730715417424,0.40472,2472.7,2472.5,0.40473]
[1730715417630,0.40472,2472.7,2472.4,3.88761447]
[1730715417822,3.2078,2472.8,2472.4,3.88761447]
[1730715418125,0.40475,2472.5,2472.4,3.88761447]
[1730715418328,0.40477,2472.4,2472.2,4.45451447]
[1730715418529,1.00686,2472.4,2472.2,4.85930447]
[1730715418824,1.00686,2472.4,2472.2,4.45451447]
[1730715419029,1.00687,2472.4,2472.2,4.85930447]
[1730715419226,1.00687,2472.4,2472.2,4.45451447]
[1730715419420,1.00687,2472.4,2472.2,3.88761447]
[1730715419622,1.00687,2472.4,2472.2,4.29240447]
[1730715420219,0.6021,2472.4,2472.2,3.88761447]
[1730715420427,0.40478,2472.3,2472.2,3.88761447]
[1730715420728,0.6021,2472.4,2472.2,3.88761447]
[1730715420931,1.00687,2472.4,2472.2,4.29240447]
[1730715421136,40.8,2472.3,2472.2,3.88761447]
[1730715421325,0.40482,2472.1,2471.9,8.07046447]
[1730715421530,40.8,2472.3,2471.9,4.45781447]
[1730715421722,40.8,2472.3,2472.2,4.29241447]
[1730715422127,40.8,2472.3,2472.2,3.88761447]
[1730715422619,41.20478,2472.3,2472.2,3.88761447]
[1730715422818,44.8448,2472.3,2471.8,3.88761447]
[1730715423123,0.40488,2471.7,2471.6,3.2078]
[1730715423328,0.40491,2471.6,2471.3,4.29254447]
[1730715423630,0.5951,2471.6,2471.2,1.04385238]
[1730715423836,0.40498,2471.1,2471.0,3.2078]
[1730715424134,0.40498,2471.1,2470.8,4.45901447]
[1730715424135,0.40498,2471.1,2470.8,5.90787685]
[1730715424330,0.40498,2471.1,2470.9,0.97742561]
[1730715424534,40.8,2471.0,2470.9,0.40501]
[1730715424728,41.3951,2471.0,2470.9,0.40501]
[1730715425121,41.3951,2471.0,2470.8,4.29263447]
[1730715425327,41.80009,2471.0,2470.8,3.88761447]
[1730715425531,0.40502,2470.9,2470.7,0.40503]
[1730715425730,41.3951,2471.0,2470.9,0.40501]
[1730715426034,41.3951,2471.0,2470.6,1.7433]
[1730715426035,0.40502,2470.9,2470.6,1.7433]
[1730715426338,41.3951,2471.0,2470.6,1.7433]
[1730715426536,41.3951,2471.0,2470.8,0.40502]
[1730715426831,41.80011,2471.0,2470.6,1.7433]
[1730715427037,41.80011,2471.0,2470.7,0.97968889]
[1730715427336,41.80011,2471.0,2470.7,0.40503]
[1730715427533,41.3951,2471.0,2470.8,0.40501]
[1730715427834,41.3951,2471.0,2470.9,0.40501]
[1730715428132,41.3951,2471.0,2470.6,1.7433]
[1730715428334,41.3951,2471.0,2470.7,0.57455218]
[1730715428529,41.3951,2471.0,2470.9,0.40501]
[1730715428730,41.3951,2471.0,2470.8,0.40502]
[1730715428930,42.40683613,2471.0,2470.6,1.7433]
[1730715429130,42.40683613,2471.0,2470.9,0.40501]
[1730715429837,41.81173613,2471.0,2470.9,0.40501]
[1730715430231,1.01173613,2471.0,2470.8,4.29263447]
[1730715430738,41.81173613,2471.0,2470.8,4.29263447]
[1730715431340,1.01173613,2471.0,2470.9,0.40501]
[1730715431544,1.41672613,2471.0,2470.8,4.29263447]
[1730715432040,0.40507,2470.5,2470.4,1.04385238]
[1730715432252,1.01261,2470.7,2470.1,0.40513]
[1730715432542,2.19023,2470.9,2470.3,0.40511]
[1730715432543,0.5646,2470.4,2470.3,0.40511]
[1730715432836,0.40511,2470.3,2469.9,5.08991447]
[1730715433029,0.5646,2470.4,2469.9,5.08991447]
[1730715433228,1.1497,2470.4,2470.0,0.57484895]
[1730715433431,1.1497,2470.4,2469.9,5.08991447]
[1730715433432,0.40513,2470.2,2469.9,4.29277447]
[1730715433633,1.1497,2470.4,2470.1,0.40513]
[1730715433634,0.40511,2470.3,2470.1,0.40513]
[1730715433937,0.40511,2470.3,2470.0,0.40514]
[1730715434241,0.40515,2470.1,2469.8,3.2078]
[1730715434438,1.1497,2470.4,2469.8,3.2078]
[1730715434638,3.2078,2470.2,2469.5,3.2078]
[1730715434841,0.40522,2469.6,2469.2,4.83995238]
[1730715435143,3.2078,2469.8,2469.3,0.57485095]
[1730715435331,1.00205,2469.5,2469.3,0.40527]
[1730715435531,1.00205,2469.5,2469.4,0.40526]
[1730715435532,0.5968,2469.5,2469.4,0.40526]
[1730715435733,1.00205,2469.5,2469.3,0.40527]
[1730715435933,0.5968,2469.5,2469.4,0.40526]
[1730715436130,3.2078,2470.1,2469.5,1.0131]
[1730715436330,3.2078,2470.1,2470.0,0.40516]
[1730715436743,3.2078,2470.1,2469.8,3.88761447]
[1730715437134,3.2078,2470.1,2470.0,0.40516]
[1730715438936,3.2078,2470.1,2470.0,4.45396]
[1730715439139,3.2078,2470.1,2470.0,0.40516]
[1730715440745,1.01202283,2470.3,2470.0,4.0488]
[1730715441037,1.01202283,2470.3,2470.2,0.40512]
[1730715442145,1.01202283,2470.3,2469.8,3.7851]
[1730715442146,0.40513,2470.2,2470.0,0.40515]
[1730715442337,0.5737,2470.1,2470.0,0.40515]
[1730715443548,4.21982283,2470.3,2470.0,4.0488]
[1730715443843,4.21982283,2470.3,2470.2,0.40512]
[1730715445039,0.40512,2470.2,2469.8,7.09541447]
[1730715445240,4.21982283,2470.3,2470.2,0.40512]
[1730715445448,4.21982283,2470.3,2469.8,8.10838447]
[1730715445743,4.21982283,2470.3,2470.2,0.40512]
[1730715445946,1.01202283,2470.3,2470.2,0.40512]
[1730715446548,1.01202283,2470.3,2470.2,1.01162]
[1730715447439,1.01202283,2470.3,2469.8,7.09541447]
[1730715447639,0.40513,2470.2,2470.0,0.40515]
[1730715448045,1.01202283,2470.3,2469.8,4.78367]
[1730715448243,1.01202283,2470.3,2470.2,0.40512]
[1730715448447,1.01202283,2470.3,2469.8,8.67128447]
[1730715448638,1.01202283,2470.3,2470.2,0.40512]
[1730715449239,1.01202283,2470.3,2470.1,0.40513]
[1730715449240,1.41714283,2470.3,2470.1,0.40513]
[1730715449644,1.01202283,2470.3,2470.2,0.40512]
[1730715452442,1.01202283,2470.3,2470.2,0.98372]
[1730715453540,1.01202283,2470.3,2470.2,5.03172]
[1730715453847,3.2078,2471.2,2470.9,0.40501]
[1730715453848,1.58873613,2471.0,2470.9,0.40501]
[1730715454042,1.58873613,2471.0,2470.5,3.2078]
[1730715454248,42.38873613,2471.0,2470.3,1.59537]
[1730715454437,0.40512,2470.3,2470.1,0.5555]
[1730715454641,0.577,2470.2,2469.8,3.2078]
[1730715454838,0.6011,2470.1,2469.8,3.2078]
[1730715455039,0.40517,2469.9,2469.8,3.2078]
[1730715455546,0.6011,2470.1,2470.0,0.40516]
[1730715455745,41.4011,2470.1,2469.8,3.2078]
[1730715456241,41.4011,2470.1,2470.0,0.40516]
[1730715456943,0.577,2470.2,2469.8,4.22077]
[1730715457153,0.577,2470.2,2470.1,0.40514]
[1730715457947,41.377,2470.2,2470.1,0.40514]
[1730715458245,41.78213,2470.2,2470.0,0.40515]
[1730715458446,41.377,2470.2,2469.8,3.8107]
[1730715458649,41.78213,2470.2,2469.8,3.8107]
[1730715458950,41.78213,2470.2,2470.1,0.40514]
[1730715459350,41.377,2470.2,2470.1,0.40514]
[1730715459550,41.377,2470.2,2470.0,0.40515]
[1730715459551,41.78213,2470.2,2470.0,0.40515]
[1730715459943,41.78213,2470.2,2469.8,4.82368]
[1730715460450,0.40517,2469.9,2469.8,3.2078]
[1730715461546,44.5848,2470.2,2469.8,3.2078]
[1730715461746,0.40517,2469.9,2469.8,3.2078]
[1730715462154,0.40517,2470.0,2469.8,3.61298]
[1730715463147,44.5848,2470.2,2469.6,3.2078]
[1730715463343,0.40521,2469.7,2469.6,3.61302]
[1730715463551,0.40521,2469.7,2469.6,3.2078]
[1730715463850,0.40524,2469.6,2469.4,0.40525]
[1730715464055,0.40524,2469.6,2469.1,4.22106]
[1730715464056,0.5851,2469.6,2469.1,3.2078]
[1730715464254,0.5851,2469.6,2469.0,0.5499]
[1730715464456,3.2078,2469.4,2469.1,0.57103525]
[1730715464655,3.2078,2469.4,2469.2,0.40528]
[1730715464656,3.61306,2469.4,2469.2,0.40528]
[1730715464862,40.8,2469.3,2468.8,8.72086685]
[1730715465053,40.8,2469.3,2469.0,0.40531]
[1730715465363,41.20528,2469.3,2468.9,0.40534]
[1730715465555,41.20528,2469.3,2469.1,0.4053]
[1730715465556,41.75178,2469.3,2469.1,0.4053]
[1730715466152,41.3465,2469.3,2468.8,9.73425685]
[1730715466352,41.3465,2469.3,2469.2,0.40529]
[1730715466353,40.8,2469.3,2469.2,0.40529]
[1730715466561,0.5851,2469.6,2469.4,0.40524]
[1730715466763,0.5851,2469.6,2469.5,0.40524]
[1730715467057,3.2078,2470.0,2469.5,0.9762745]
[1730715467247,3.2078,2470.0,2469.9,0.40517]
[1730715467454,3.2078,2470.0,2469.6,1.01304]
[1730715467455,3.61297,2470.0,2469.8,0.40519]
[1730715467650,44.41297,2470.0,2469.8,0.40519]
[1730715468359,44.41297,2470.0,2469.9,0.57183891]
[1730715468660,44.41297,2470.0,2469.8,0.40519]
[1730715469247,44.41297,2470.0,2469.9,0.57215334]
[1730715469451,44.0078,2470.0,2469.9,0.57215334]
[1730715469648,44.0078,2470.0,2469.9,0.97732334]
[1730715469858,44.0078,2470.0,2469.9,0.57215334]
[1730715470062,44.41296,2470.0,2469.9,0.57215334]
[1730715470561,44.0078,2470.0,2469.9,0.57215334]
[1730715470755,44.0078,2470.0,2469.7,1.04385238]
[1730715470959,44.0078,2470.0,2469.9,0.97741463]
[1730715471258,44.41296,2470.0,2469.8,1.32077419]
[1730715471457,44.0078,2470.0,2469.9,0.97750434]
[1730715472661,3.2078,2470.0,2469.9,0.97750434]
[1730715472851,0.5595,2470.4,2469.9,13.1797917]
[1730715473050,0.5595,2470.4,2470.3,0.40511]
[1730715473350,41.3595,2470.4,2470.3,0.97744434]
[1730715473555,41.3595,2470.4,2470.3,1.8929527]
[1730715474254,41.3595,2470.4,2470.3,0.40511]
[1730715474555,41.3595,2470.4,2470.3,0.97734849]
[1730715474761,41.3595,2470.4,2470.3,1.89297982]
[1730715475259,41.3595,2470.4,2470.3,0.97734849]
[1730715475454,41.76459,2470.4,2470.3,0.97734849]
[1730715476058,41.76459,2470.4,2470.1,1.04580523]
[1730715476059,0.40512,2470.2,2470.1,1.04580523]
[1730715476265,7.8297,2470.3,2469.9,1.04580523]
[1730715476560,0.40517,2469.9,2469.8,1.32077419]
[1730715476749,0.40517,2470.0,2469.9,0.40516]
[1730715476951,40.8,2470.2,2469.8,0.91559419]
[1730715477154,0.40515,2470.1,2470.0,0.40514]
[1730715477354,0.40515,2470.1,2469.8,1.92857419]
[1730715477355,40.8,2470.2,2470.1,0.40514]
[1730715477758,40.8,2470.2,2470.1,1.31455611]
[1730715478058,40.8,2470.2,2470.1,1.31452382]
[1730715478259,40.8,2470.2,2470.1,2.36032905]
[1730715478462,40.8,2470.2,2470.1,0.40514]
[1730715478675,40.8,2470.2,2470.1,2.36015257]
[1730715478855,40.8,2470.2,2470.1,7.84773174]
[1730715479055,40.8,2470.2,2470.1,6.80192651]
[1730715479255,40.8,2470.2,2470.1,8.3863534]
[1730715479465,40.8,2470.2,2470.1,6.40853637]
[1730715480368,3.2078,2470.6,2470.5,0.40507]
[1730715480561,3.61286,2470.6,2470.4,0.40508]
[1730715480860,40.8,2470.5,2470.4,0.40509]
[1730715481658,40.8,2470.5,2470.4,4.45309]
[1730715481866,2.02413613,2471.0,2470.8,0.40502]
[1730715482260,40.8,2470.9,2470.8,0.40502]
[1730715482568,41.20501,2470.9,2470.8,0.40503]
[1730715483159,40.8,2470.9,2470.5,1.01269]
[1730715483364,41.81254,2470.9,2470.3,3.2078]
[1730715483568,41.81254,2470.9,2470.3,0.40509]
[1730715483569,0.40509,2470.4,2470.3,0.40509]
[1730715483766,3.2078,2470.5,2470.1,1.59776]
[1730715484073,4.79163,2470.8,2470.7,0.40504]
[1730715484366,0.40505,2470.7,2470.6,0.40505]
[1730715484565,3.7903,2470.8,2470.2,7.09541447]
[1730715484765,4.19534,2470.8,2470.7,0.40504]
[1730715485565,3.7903,2470.8,2470.4,1.01273]
[1730715485765,0.40507,2470.6,2470.5,0.40507]
[1730715486065,0.5736,2470.7,2470.2,3.2078]
[1730715486267,3.7778,2470.5,2470.0,0.5576]
[1730715486468,0.40517,2469.9,2469.8,1.04607532]
[1730715486673,0.40522,2469.6,2469.5,4.25387532]
[1730715486873,0.40522,2469.6,2469.1,4.90087447]
[1730715486874,4.22087,2469.6,2469.1,2.01556532]
[1730715487171,0.40526,2469.4,2469.1,0.96949]
[1730715487364,40.8,2469.5,2469.1,0.96949]
[1730715487562,40.8,2469.5,2469.1,0.5642]
[1730715487774,41.20525,2469.5,2469.3,0.40526]
[1730715488167,0.40526,2469.4,2469.2,0.40528]
[1730715488466,44.8496,2469.5,2468.8,1.62817532]
[1730715488467,3.2078,2469.3,2468.8,1.62817532]
[1730715488773,0.40531,2469.1,2468.9,0.97340901]
[1730715488971,3.2078,2469.3,2468.8,0.5821]
[1730715489164,0.40529,2469.2,2469.0,0.40532]
[1730715489365,0.4053,2469.2,2469.0,0.40531]
[1730715489569,40.8,2469.5,2468.8,4.46971447]
[1730715489872,40.8,2469.5,2469.0,0.40532]
[1730715490067,0.40528,2469.3,2469.1,0.4053]
[1730715490464,0.40528,2469.3,2468.8,5.48309447]
[1730715490465,0.40526,2469.4,2469.2,0.40527]
[1730715490664,40.8,2469.5,2469.1,0.4053]
[1730715490665,0.40529,2469.2,2469.1,0.4053]
[1730715490868,0.40529,2469.2,2469.0,0.40531]
[1730715491061,0.40531,2469.1,2468.9,0.40533]
[1730715491265,3.2078,2469.3,2468.8,0.5821]
[1730715491472,0.40529,2469.2,2469.1,0.4053]
[1730715491667,3.2078,2469.3,2468.8,0.5821]
[1730715491867,0.40526,2469.4,2469.2,0.40528]
[1730715492068,0.40526,2469.4,2468.9,1.01335]
[1730715492372,41.20525,2469.5,2469.3,0.40527]
[1730715492570,41.20525,2469.5,2469.4,0.40526]
[1730715492571,40.8,2469.5,2469.4,0.40526]
[1730715492872,40.8,2469.5,2469.1,1.01325]
[1730715492873,3.2078,2469.6,2469.5,0.40524]
[1730715493073,0.5816,2469.8,2469.7,0.40521]
[1730715493273,3.61298,2469.9,2469.4,1.01314]
[1730715493274,44.0078,2469.9,2469.4,1.01314]
[1730715493467,0.40519,2469.8,2469.6,0.40521]
[1730715493669,44.0078,2469.9,2469.6,0.40521]
[1730715494069,0.4052,2469.8,2469.6,0.40522]
[1730715494271,0.4052,2469.8,2469.6,0.40521]
[1730715494471,44.0078,2469.9,2469.4,0.40525]
[1730715494676,3.2078,2469.6,2469.0,3.2078]
[1730715494979,0.4053,2469.1,2469.0,3.61312]
[1730715495167,4.22088,2469.6,2469.1,0.40529]
[1730715495168,0.40528,2469.3,2469.1,0.40529]
[1730715495371,0.40528,2469.3,2469.1,0.4053]
[1730715495665,1.7035,2469.5,2469.0,3.2078]
[1730715495666,0.575,2469.5,2469.0,3.2078]
[1730715495867,0.575,2469.5,2469.3,0.40527]
[1730715496170,0.40527,2469.4,2469.2,0.40528]
[1730715496573,0.40527,2469.4,2469.3,0.40527]
[1730715496872,0.575,2469.5,2469.2,0.40528]
[1730715497072,3.2078,2469.3,2468.9,0.95613]
[1730715497273,1.01315,2469.4,2468.6,6.48551136]